[Event "CZE-ch 2020"]
[Site "Pilsen"]
[Date "2020.08.28"]
[Round "6.8"]
[White "Gloser, David"]
[Black "Simacek, Pavel"]
[Result "0-1"]
[ECO "A61"]
[WhiteElo "2248"]
[BlackElo "2474"]
[Annotator "ChessBase"]
[PlyCount "62"]
[EventDate "2020.08.23"]
[EventType "swiss"]
[EventCountry "CZE"]
[SourceTitle "playchess.com"]
[Source "ChessBase"]
[SourceQuality "1"]
[TimeControl "40/5400+30:1800+30"]

1. d4 {[%emt 0:00:00]} Nf6 {[%emt 0:00:00]} 2. c4 {[%emt 0:00:00]} c5 {[%emt 0:00:17]} 3. d5 {[%emt 0:00:00]} e6 {[%emt 0:00:03]} 4. Nc3 {[%emt 0:00:02]} exd5 {[%emt 0:00:05]} 5. cxd5 {[%emt 0:00:10]} d6 {[%emt 0:00:04]} 6. Nf3 {[%emt 0:00:16]} g6 {[%emt 0:00:12]} 7. Bf4 {[%emt 0:00:23]} a6 {[%emt 0:00:56]} 8. a4 {[%emt 0:02:31]} Bg7 {[%emt 0:00:30]} 9. h3 {[%emt 0:01:04]} O-O {[%emt 0:00:11]} 10. e3 {[%emt 0:01:08]} Re8 {[%emt 0:08:06]} 11. Nd2 {[%emt 0:02:57]} Nbd7 {[%emt 0:00:14]} 12. Be2 {[%emt 0:01:49]} Ne5 {[%emt 0:03:00]} 13. O-O {[%emt 0:02:01]} Nfd7 {[%emt 0:01:00]} 14. Bh2 {[%emt 0:03:16]} f5 {[%emt 0:00:09]} 15. Qc2 {[%emt 0:06:54]} Nf6 {[%emt 0:01:48]} 16. Rae1 {[%emt 0:02:53]} Rb8 {[%emt 0:04:40]} 17. f4 {[%emt 0:04:07]} Nf7 {[%emt 0:01:16]} 18. Bd3 {[%emt 0:02:57]} Bd7 {[%emt 0:05:20]} 19. e4 {[%emt 0:05:25]} fxe4 {[%emt 0:01:46]} 20. Ndxe4 {[%emt 0:08:55]} Nxe4 {[%emt 0:00:27]} 21. Rxe4 {[%emt 0:04:27]} Rxe4 {[%emt 0:04:00]} 22. Bxe4 {[%emt 0:02:35]} Bd4+ {[%emt 0:01:23]} 23. Kh1 {[%emt 0:00:59]} Qf6 {[%emt 0:00:08]} 24. Rb1 {[%emt 0:11:46]} Re8 {[%emt 0:03:02]} 25. Bd3 {[%emt 0:10:59]} Nh6 {[%emt 0:10:56]} 26. Ne4 {[%emt 0:02:21]} Qh4 {[%emt 0:01:12]} 27. Nxd6 {[%emt 0:05:52]} Re1+ {[%emt 0:01:10]} 28. Bf1 {[%emt 0:00:06]} Nf5 {[%emt 0:01:27]} 29. Nc4 {[%emt 0:03:21]} b5 {[%emt 0:15:44]} 30. Nd2 {[%emt 0:00:42]} Qf2 {[%emt 0:00:36]} 31. Qd3 {[%emt 0:00:59]} Rxb1 {[%emt 0:00:16]} 0-1

[Event "CZE-ch 2020"]
[Site "Pilsen"]
[Date "2020.08.28"]
[Round "6.12"]
[White "Novotny, Michal"]
[Black "Kozusek, Daniel"]
[Result "0-1"]
[ECO "D00"]
[WhiteElo "2246"]
[BlackElo "2307"]
[Annotator "ChessBase"]
[PlyCount "52"]
[EventDate "2020.08.23"]
[EventType "swiss"]
[EventCountry "CZE"]
[SourceTitle "playchess.com"]
[Source "ChessBase"]
[SourceQuality "1"]
[TimeControl "40/5400+30:1800+30"]

1. d4 {[%emt 0:00:00]} d5 {[%emt 0:00:00]} 2. Nc3 {[%emt 0:00:00]} Nf6 {[%emt 0:00:00]} 3. Bf4 {[%emt 0:00:00]} Bf5 {[%emt 0:00:51]} 4. f3 {[%emt 0:00:00]} e6 {[%emt 0:01:33]} 5. g4 {[%emt 0:00:00]} Bg6 {[%emt 0:00:06]} 6. h4 {[%emt 0:00:00]} h5 {[%emt 0:00:09]} 7. g5 {[%emt 0:00:00]} Ng8 {[%emt 0:00:28]} 8. e3 {[%emt 0:00:05]} Bd6 {[%emt 0:01:31]} 9. Nge2 {[%emt 0:17:09]} Ne7 {[%emt 0:02:19]} 10. Qd2 {[%emt 0:05:04]} a6 {[%emt 0:02:26]} 11. e4 {[%emt 0:02:43]} O-O {[%emt 0:07:04]} 12. O-O-O {[%emt 0:06:13]} b5 {[%emt 0:01:49]} 13. Qe3 {[%emt 0:00:50]} c6 {[%emt 0:03:43]} 14. Bh3 {[%emt 0:05:56]} a5 {[%emt 0:02:15]} 15. Be5 {[%emt 0:07:20]} Bxe5 {[%emt 0:10:43]} 16. dxe5 {[%emt 0:00:49]} b4 {[%emt 0:02:38]} 17. Na4 {[%emt 0:00:49]} Nd7 {[%emt 0:00:04]} 18. Nf4 {[%emt 0:05:49]} Nxe5 {[%emt 0:03:46]} 19. exd5 {[%emt 0:14:13]} Nc4 {[%emt 0:00:20]} 20. Qc5 {[%emt 0:05:58]} cxd5 {[%emt 0:01:22]} 21. Rhe1 {[%emt 0:19:08]} Rc8 {[%emt 0:03:13]} 22. Nxe6 {[%emt 0:00:05]} Rxc5 {[%emt 0:00:17]} 23. Nxd8 {[%emt 0:00:02]} Rc7 {[%emt 0:00:18]} 24. Rxe7 {[%emt 0:02:11]} Rxe7 {[%emt 0:00:08]} 25. Nc6 {[%emt 0:00:05]} Re2 {[%emt 0:01:49]} 26. Nd4 {[%emt 0:00:02]} Rh2 {[%emt 0:00:10]} 0-1

[Event "CZE-ch 2020"]
[Site "Pilsen"]
[Date "2020.08.28"]
[Round "6.13"]
[White "Kusa, Jakub"]
[Black "Rabatin, Jakub"]
[Result "0-1"]
[ECO "B56"]
[WhiteElo "2239"]
[BlackElo "2291"]
[Annotator "ChessBase"]
[PlyCount "102"]
[EventDate "2020.08.23"]
[EventType "swiss"]
[EventCountry "CZE"]
[SourceTitle "playchess.com"]
[Source "ChessBase"]
[SourceQuality "1"]
[TimeControl "40/5400+30:1800+30"]

1. e4 {[%emt 0:00:00]} c5 {[%emt 0:00:00]} 2. Nf3 {[%emt 0:00:00]} Nc6 {[%emt 0:00:00]} 3. d4 {[%emt 0:00:00]} cxd4 {[%emt 0:00:00]} 4. Nxd4 {[%emt 0:00:00]} Nf6 {[%emt 0:00:00]} 5. Nc3 {[%emt 0:00:06]} d6 {[%emt 0:00:00]} 6. f3 {[%emt 0:00:58]} e5 {[%emt 0:00:06]} 7. Nb3 {[%emt 0:00:32]} Be7 {[%emt 0:00:12]} 8. Be3 {[%emt 0:01:14]} O-O {[%emt 0:00:13]} 9. Be2 {[%emt 0:00:45]} Be6 {[%emt 0:02:01]} 10. O-O {[%emt 0:01:34]} a5 {[%emt 0:00:10]} 11. Qd2 {[%emt 0:04:25]} a4 {[%emt 0:02:48]} 12. Nc1 {[%emt 0:01:41]} a3 {[%emt 0:04:12]} 13. b3 {[%emt 0:01:14]} Ra5 {[%emt 0:07:20]} 14. Na4 {[%emt 0:08:43]} b5 {[%emt 0:44:57]} 15. Bb6 {[%emt 0:02:40]} Qb8 {[%emt 0:00:59]} 16. Bxa5 {[%emt 0:02:03]} bxa4 {[%emt 0:00:05]} 17. b4 {[%emt 0:10:51]} d5 {[%emt 0:01:19]} 18. exd5 {[%emt 0:02:22]} Nxd5 {[%emt 0:00:41]} 19. Nd3 {[%emt 0:03:02]} Qa7+ {[%emt 0:12:40]} 20. Kh1 {[%emt 0:02:06]} Ne3 {[%emt 0:00:06]} 21. Rfe1 {[%emt 0:02:22]} Nc4 {[%emt 0:11:10]} 22. Qd1 {[%emt 0:04:35]} N6xa5 {[%emt 0:05:45]} 23. bxa5 {[%emt 0:00:30]} Qxa5 {[%emt 0:01:20]} 24. c3 {[%emt 0:02:52]} Qxc3 {[%emt 0:02:57]} 25. Qxa4 {[%emt 0:02:25]} Nb2 {[%emt 0:00:34]} 26. Qe4 {[%emt 0:02:14]} Rd8 {[%emt 0:01:54]} 27. Rac1 {[%emt 0:09:21]} Nxd3 {[%emt 0:01:24]} 28. Rxc3 {[%emt 0:01:06]} Nf2+ {[%emt 0:00:04]} 29. Kg1 {[%emt 0:00:13]} Nxe4 {[%emt 0:00:01]} 30. fxe4 {[%emt 0:00:20]} Bb4 {[%emt 0:01:21]} 31. Rec1 {[%emt 0:00:12]} Bxc3 {[%emt 0:00:06]} 32. Rxc3 {[%emt 0:00:20]} Ra8 {[%emt 0:00:22]} 33. Rc2 {[%emt 0:00:50]} g6 {[%emt 0:00:26]} 34. Kf2 {[%emt 0:00:39]} Rb8 {[%emt 0:00:48]} 35. Bd3 {[%emt 0:01:19]} Kg7 {[%emt 0:00:54]} 36. Ke3 {[%emt 0:00:33]} Rb1 {[%emt 0:00:31]} 37. Rc3 {[%emt 0:01:55]} Rb2 {[%emt 0:00:21]} 38. Rxa3 {[%emt 0:00:07]} Rxg2 {[%emt 0:00:32]} 39. Be2 {[%emt 0:00:10]} Rxh2 {[%emt 0:00:13]} 40. Ra7 {[%emt 0:00:19]} Rh3+ {[%emt 0:00:28]} 41. Kf2 {[%emt 0:30:51]} h5 {[%emt 0:05:35]} 42. a4 {[%emt 0:00:00]} Ra3 {[%emt 0:01:02]} 43. a5 {[%emt 0:00:00]} h4 {[%emt 0:00:09]} 44. a6 {[%emt 0:00:00]} g5 {[%emt 0:00:44]} 45. Rc7 {[%emt 0:00:00]} g4 {[%emt 0:00:34]} 46. a7 {[%emt 0:00:00]} g3+ {[%emt 0:00:07]} 47. Ke1 {[%emt 0:00:00]} h3 {[%emt 0:00:52]} 48. Rc3 {[%emt 0:00:00]} Rxc3 {[%emt 0:01:44]} 49. a8=Q {[%emt 0:00:00]} h2 {[%emt 0:00:06]} 50. Kd2 {[%emt 0:00:00]} h1=Q {[%emt 0:00:27]} 51. Kxc3 {[%emt 0:00:00]} Qc1+ 0-1

[Event "CZE-ch 2020"]
[Site "Pilsen"]
[Date "2020.08.28"]
[Round "6.14"]
[White "Mladek, Richard"]
[Black "Paseka, Matyas"]
[Result "1-0"]
[ECO "B32"]
[WhiteElo "2280"]
[BlackElo "1959"]
[Annotator "ChessBase"]
[PlyCount "81"]
[EventDate "2020.08.23"]
[EventType "swiss"]
[EventCountry "CZE"]
[SourceTitle "playchess.com"]
[Source "ChessBase"]
[SourceQuality "1"]
[TimeControl "40/5400+30:1800+30"]

1. e4 {[%emt 0:04:32]} c5 {[%emt 0:00:00]} 2. Nf3 {[%emt 0:00:07]} Nc6 {[%emt 0:00:00]} 3. d4 {[%emt 0:00:01]} cxd4 {[%emt 0:00:00]} 4. Nxd4 {[%emt 0:00:02]} e5 {[%emt 0:00:04]} 5. Nb5 {[%emt 0:00:05]} d6 {[%emt 0:00:08]} 6. N1c3 {[%emt 0:00:07]} a6 {[%emt 0:00:07]} 7. Na3 {[%emt 0:00:04]} Be7 {[%emt 0:00:06]} 8. Nc4 {[%emt 0:00:08]} b5 {[%emt 0:00:07]} 9. Ne3 {[%emt 0:00:03]} Nf6 {[%emt 0:00:14]} 10. Bd3 {[%emt 0:00:50]} O-O {[%emt 0:00:14]} 11. O-O {[%emt 0:00:10]} Nb4 {[%emt 0:00:06]} 12. Be2 {[%emt 0:00:06]} Be6 {[%emt 0:02:33]} 13. a3 {[%emt 0:05:49]} Nc6 {[%emt 0:00:11]} 14. Bd3 {[%emt 0:04:31]} b4 {[%emt 0:04:24]} 15. Ncd5 {[%emt 0:01:41]} bxa3 {[%emt 0:07:31]} 16. Rxa3 {[%emt 0:00:51]} a5 {[%emt 0:05:55]} 17. c3 {[%emt 0:09:49]} Bxd5 {[%emt 0:01:50]} 18. exd5 {[%emt 0:01:04]} Nb8 {[%emt 0:00:19]} 19. Bb5 {[%emt 0:01:47]} Qb6 {[%emt 0:10:17]} 20. Rb3 {[%emt 0:01:49]} Qc5 {[%emt 0:01:25]} 21. Nf5 {[%emt 0:00:48]} Bd8 {[%emt 0:00:52]} 22. c4 {[%emt 0:02:04]} Kh8 {[%emt 0:09:12]} 23. Be3 {[%emt 0:04:00]} Qc7 {[%emt 0:01:29]} 24. f4 {[%emt 0:02:06]} Nbd7 {[%emt 0:01:01]} 25. fxe5 {[%emt 0:01:59]} Nxe5 {[%emt 0:00:24]} 26. Bd4 {[%emt 0:08:06]} Rb8 {[%emt 0:06:02]} 27. Kh1 {[%emt 0:04:56]} g6 {[%emt 0:02:51]} 28. Nxd6 {[%emt 0:12:49]} Qxd6 {[%emt 0:01:02]} 29. Re3 {[%emt 0:01:59]} Nxc4 {[%emt 0:03:54]} 30. Bxc4 {[%emt 0:01:23]} Rb4 {[%emt 0:00:07]} 31. b3 {[%emt 0:02:07]} Kg8 {[%emt 0:02:28]} 32. Bc3 {[%emt 0:00:45]} Rb7 {[%emt 0:01:15]} 33. Qf3 {[%emt 0:06:16]} Nd7 {[%emt 0:05:22]} 34. Re8 {[%emt 0:00:45]} Nc5 {[%emt 0:01:12]} 35. Be5 {[%emt 0:00:15]} Qd7 {[%emt 0:00:42]} 36. Rxf8+ {[%emt 0:04:33]} Kxf8 {[%emt 0:00:11]} 37. Qe3 {[%emt 0:02:31]} Bb6 {[%emt 0:03:19]} 38. Qh6+ {[%emt 0:00:37]} Ke8 {[%emt 0:00:38]} 39. Qxh7 {[%emt 0:01:02]} Qe7 {[%emt 0:00:41]} 40. Bf6 {[%emt 0:02:04]} Qf8 {[%emt 0:02:27]} 41. Bb5+ {[%emt 0:30:36]} 1-0

[Event "CZE-ch 2020"]
[Site "Pilsen"]
[Date "2020.08.28"]
[Round "6.15"]
[White "Brejnik, Gustav"]
[Black "Nemec, Jachym"]
[Result "1-0"]
[ECO "D11"]
[WhiteElo "2265"]
[BlackElo "2150"]
[Annotator "ChessBase"]
[PlyCount "63"]
[EventDate "2020.08.23"]
[EventType "swiss"]
[EventCountry "CZE"]
[SourceTitle "playchess.com"]
[Source "ChessBase"]
[SourceQuality "1"]
[TimeControl "40/5400+30:1800+30"]

1. d4 {[%emt 0:00:00]} d5 {[%emt 0:00:00]} 2. c4 {[%emt 0:00:00]} c6 {[%emt 0:00:00]} 3. Nf3 {[%emt 0:00:00]} Nf6 {[%emt 0:00:00]} 4. Qb3 {[%emt 0:00:09]} e6 {[%emt 0:01:23]} 5. Bg5 {[%emt 0:00:26]} Be7 {[%emt 0:00:28]} 6. e3 {[%emt 0:01:38]} O-O {[%emt 0:00:12]} 7. Nc3 {[%emt 0:00:44]} Nbd7 {[%emt 0:04:34]} 8. Rc1 {[%emt 0:00:59]} Re8 {[%emt 0:05:09]} 9. Bd3 {[%emt 0:13:39]} dxc4 {[%emt 0:06:15]} 10. Bxc4 {[%emt 0:01:13]} Nd5 {[%emt 0:05:57]} 11. Bxe7 {[%emt 0:02:20]} Qxe7 {[%emt 0:00:32]} 12. e4 {[%emt 0:14:50]} b5 {[%emt 0:05:55]} 13. Bxd5 {[%emt 0:20:45]} exd5 {[%emt 0:00:33]} 14. O-O {[%emt 0:02:19]} b4 {[%emt 0:11:43]} 15. exd5 {[%emt 0:01:11]} bxc3 {[%emt 0:01:33]} 16. Rce1 {[%emt 0:00:07]} Qf8 {[%emt 0:01:14]} 17. Rxe8 {[%emt 0:04:00]} Qxe8 {[%emt 0:00:09]} 18. Re1 {[%emt 0:00:06]} Qf8 {[%emt 0:01:09]} 19. dxc6 {[%emt 0:00:08]} Nb6 {[%emt 0:01:09]} 20. Qxc3 {[%emt 0:04:08]} Be6 {[%emt 0:00:42]} 21. Ne5 {[%emt 0:07:37]} Rc8 {[%emt 0:08:48]} 22. Qa5 {[%emt 0:06:36]} Rc7 {[%emt 0:01:21]} 23. b4 {[%emt 0:00:33]} Bd5 {[%emt 0:05:42]} 24. b5 {[%emt 0:00:07]} f6 {[%emt 0:00:35]} 25. Nd7 {[%emt 0:00:28]} Rxd7 {[%emt 0:09:31]} 26. cxd7 {[%emt 0:00:05]} Nxd7 {[%emt 0:00:07]} 27. Qxa7 {[%emt 0:01:09]} Qb4 {[%emt 0:00:45]} 28. Re8+ {[%emt 0:04:52]} Nf8 {[%emt 0:00:26]} 29. h3 {[%emt 0:01:33]} Qb1+ {[%emt 0:00:58]} 30. Kh2 {[%emt 0:00:02]} Bf7 {[%emt 0:03:38]} 31. Rd8 {[%emt 0:00:54]} Qxb5 {[%emt 0:04:30]} 32. Qe7 {[%emt 0:00:23]} 1-0

[Event "CZE-ch 2020"]
[Site "Pilsen"]
[Date "2020.08.28"]
[Round "6.16"]
[White "Gnojek, Petr"]
[Black "Klement, Lukas"]
[Result "1-0"]
[ECO "D19"]
[WhiteElo "2225"]
[BlackElo "2260"]
[Annotator "NA"]
[PlyCount "93"]
[EventDate "2020.08.23"]
[EventType "swiss"]
[EventCountry "CZE"]
[SourceTitle "playchess.com"]
[Source "ChessBase"]
[SourceQuality "1"]
[TimeControl "40/5400+30:1800+30"]

1. d4 {[%emt 0:00:00]} d5 {[%emt 0:00:00]} 2. c4 {[%emt 0:00:00]} c6 {[%emt 0:00:00]} 3. Nc3 {[%emt 0:00:06]} dxc4 {[%emt 0:00:44]} 4. Nf3 {[%emt 0:00:54]} Nf6 {[%emt 0:01:20]} 5. a4 {[%emt 0:00:24]} Bf5 {[%emt 0:00:26]} 6. e3 {[%emt 0:00:08]} e6 {[%emt 0:00:23]} 7. Bxc4 {[%emt 0:00:11]} Bb4 {[%emt 0:00:21]} 8. O-O {[%emt 0:00:21]} O-O {[%emt 0:01:03]} 9. Qe2 {[%emt 0:00:32]} Bg6 {[%emt 0:00:27]} 10. Ne5 {[%emt 0:00:33]} Nbd7 {[%emt 0:00:51]} 11. Nxg6 {[%emt 0:00:16]} hxg6 {[%emt 0:00:07]} 12. Rd1 {[%emt 0:00:18]} Qe7 {[%emt 0:00:42]} 13. Qc2 {[%emt 0:06:57]} e5 {[%emt 0:05:06]} 14. Qxg6 {[%emt 0:02:46]} Nb6 {[%emt 0:06:39]} 15. Bb3 {[%emt 0:02:27]} Nbd5 {[%emt 0:02:32]} 16. Nxd5 {[%emt 0:02:12]} cxd5 {[%emt 0:00:27]} 17. Qg5 {[%emt 0:01:23]} exd4 $16 {[%emt 0:09:30]} 18. Rxd4 {[%emt 0:05:07]} Bd6 {[%emt 0:07:45]} 19. Bd2 {[%emt 0:05:05]} Rfe8 {[%emt 0:11:39]} 20. Bc3 {[%emt 0:12:40]} Be5 {[%emt 0:05:40]} 21. Rd3 {[%emt 0:00:19]} Bxc3 {[%emt 0:01:34]} 22. Rxc3 {[%emt 0:00:05]} d4 {[%emt 0:03:30]} 23. Rd3 {[%emt 0:00:06]} Rad8 {[%emt 0:02:16]} 24. h3 {[%emt 0:01:10]} dxe3 {[%emt 0:27:04]} 25. Rxe3 {[%emt 0:00:34]} Qf8 {[%emt 0:00:51]} 26. Rf3 {[%emt 0:08:35]} Rd6 {[%emt 0:03:18]} 27. Rc1 {[%emt 0:05:37]} Re7 {[%emt 0:02:17]} 28. Re3 {[%emt 0:03:55]} Qd8 {[%emt 0:05:02]} 29. Rc8 {[%emt 0:00:46]} Qxc8 {[%emt 0:00:11]} 30. Rxe7 {[%emt 0:00:04]} Rd7 {[%emt 0:02:08]} 31. Bxf7+ {[%emt 0:00:28]} Kf8 {[%emt 0:00:07]} 32. Rxd7 {[%emt 0:00:25]} Qxd7 {[%emt 0:00:12]} 33. Bb3 {[%emt 0:00:34]} b6 {[%emt 0:01:13]} 34. Qe5 {[%emt 0:06:01]} Qd2 {[%emt 0:00:45]} 35. g4 {[%emt 0:01:27]} Qc1+ {[%emt 0:00:28]} 36. Kh2 {[%emt 0:00:22]} Qd2 {[%emt 0:00:28]} 37. Kg2 {[%emt 0:00:07]} Qd7 {[%emt 0:00:35]} 38. Qe6 {[%emt 0:05:03]} Qb7+ {[%emt 0:00:34]} 39. f3 {[%emt 0:00:52]} Qc7 {[%emt 0:00:30]} 40. g5 {[%emt 0:00:38]} Ne8 {[%emt 0:00:40]} 41. Qg8+ {[%emt 0:31:14]} Ke7 {[%emt 0:30:06]} 42. Qf7+ {[%emt 0:00:03]} Kd8 {[%emt 0:00:05]} 43. Qxc7+ {[%emt 0:00:25]} Kxc7 {[%emt 0:00:16]} 44. Kg3 {[%emt 0:01:08]} Nd6 {[%emt 0:00:32]} 45. h4 {[%emt 0:00:41]} Nf5+ {[%emt 0:00:32]} 46. Kg4 {[%emt 0:00:05]} g6 {[%emt 0:00:17]} 47. h5 {[%emt 0:00:26]} 1-0

[Event "CZE-ch 2020"]
[Site "Pilsen"]
[Date "2020.08.28"]
[Round "6.17"]
[White "Serrano Salvador, Eduardo"]
[Black "Jun, Rudolf"]
[Result "1/2-1/2"]
[ECO "A48"]
[WhiteElo "2299"]
[BlackElo "2094"]
[Annotator "NA"]
[PlyCount "88"]
[EventDate "2020.08.23"]
[EventType "swiss"]
[EventCountry "CZE"]
[SourceTitle "playchess.com"]
[Source "ChessBase"]
[SourceQuality "1"]
[TimeControl "40/5400+30:1800+30"]

1. d4 {[%emt 0:00:00]} Nf6 {[%emt 0:00:00]} 2. Nf3 {[%emt 0:00:00]} g6 {[%emt 0:00:10]} 3. c4 {[%emt 0:00:01]} Bg7 {[%emt 0:00:34]} 4. Nc3 {[%emt 0:00:29]} O-O {[%emt 0:00:23]} 5. Bf4 {[%emt 0:00:23]} d6 {[%emt 0:00:37]} 6. h3 {[%emt 0:00:23]} Nbd7 {[%emt 0:01:16]} 7. e3 {[%emt 0:00:28]} a6 {[%emt 0:01:54] 7...b6 is the modern continuation.} 8. Be2 {[%emt 0:00:54]} c6 {[%emt 0:00:46]} 9. O-O {[%emt 0:00:29] E61: King's Indian: Early deviations for White, including Smyslov System.} Re8 {[%emt 0:05:49]} 10. Rc1 {[%emt 0:01:49]} b6 {[%emt 0:02:24]} 11. b4 {[%emt 0:04:02] [#]} Bb7 $146 {[%emt 0:03:09]} ({Predecessor:} 11... a5 12. a3 Bb7 13. Qb3 axb4 14. axb4 h6 15. Rfd1 Ra7 16. c5 Bf8 17. e4 Qa8 {1-0 (41) Liascovich,L (2328)-Bibiloni,J (2210) Buenos Aires 2002}) 12. Qb3 {[%emt 0:05:41]} e5 {[%emt 0:01:49]} 13. Bh2 {[%emt 0:01:10]} exd4 {[%emt 0:14:40]} 14. exd4 {[%emt 0:01:28]} d5 {[%emt 0:00:58]} 15. Rfe1 {[%emt 0:07:08]} Rc8 {[%emt 0:05:20]} 16. a4 {[%emt 0:07:33]} Ne4 {[%emt 0:04:32]} 17. cxd5 {[%emt 0:02:28]} Nxc3 {[%emt 0:02:00]} 18. Qxc3 {[%emt 0:02:34]} cxd5 {[%emt 0:00:51]} 19. Bc7 {[%emt 0:01:34]} Qf6 {[%emt 0:00:26]} 20. Qd2 {[%emt 0:00:17]} h5 {[%emt 0:06:01]} 21. Bd3 {[%emt 0:10:56]} Rxe1+ {[%emt 0:15:44]} 22. Qxe1 {[%emt 0:01:17]} Bh6 {[%emt 0:03:57]} 23. Rc2 {[%emt 0:00:27]} Bg7 {[%emt 0:02:19]} 24. Qe2 {[%emt 0:01:21]} Nf8 {[%emt 0:03:43]} 25. Bxa6 {[%emt 0:04:17]} Bxa6 {[%emt 0:00:40]} 26. Qxa6 {[%emt 0:00:13]} Qf5 {[%emt 0:00:43]} 27. a5 $14 {[%emt 0:06:59]} bxa5 {[%emt 0:04:44]} 28. b5 {[%emt 0:00:38]} Qxc2 {[%emt 0:01:02]} 29. Qxc8 {[%emt 0:00:06]} Qb1+ {[%emt 0:00:14]} 30. Kh2 {[%emt 0:00:05]} Qxb5 {[%emt 0:00:32]} 31. Bd6 {[%emt 0:00:05]} Qd7 {[%emt 0:02:06]} 32. Qb8 {[%emt 0:00:14]} f6 {[%emt 0:00:43]} 33. Bc5 {[%emt 0:02:38]} Kf7 {[%emt 0:00:39]} 34. Qa8 {[%emt 0:01:22]} a4 {[%emt 0:00:34]} 35. Ne1 {[%emt 0:00:56]} Ne6 {[%emt 0:02:34]} 36. Nd3 {[%emt 0:00:37]} f5 {[%emt 0:02:11]} 37. Nb4 {[%emt 0:02:30]} Qc7+ {[%emt 0:03:36]} 38. Kg1 {[%emt 0:00:28]} Nxc5 {[%emt 0:01:50]} 39. dxc5 {[%emt 0:00:18]} Qxc5 {[%emt 0:00:15]} 40. Qxa4 {[%emt 0:00:53]} Qc1+ {[%emt 0:00:52]} 41. Kh2 {[%emt 0:30:08]} Qf4+ {[%emt 0:35:36]} 42. Kg1 {[%emt 0:01:44]} Qc1+ {[%emt 0:00:00]} 43. Kh2 {[%emt 0:00:00]} Qf4+ {[%emt 0:00:00]} 44. Kg1 {[%emt 0:00:00]} Qc1+ {[%emt 0:00:00]} 1/2-1/2

[Event "CZE-ch 2020"]
[Site "Pilsen"]
[Date "2020.08.28"]
[Round "6.18"]
[White "Stalmach, Richard"]
[Black "Brozka, Karel"]
[Result "1-0"]
[ECO "A58"]
[WhiteElo "2273"]
[BlackElo "1991"]
[Annotator "ChessBase"]
[PlyCount "81"]
[EventDate "2020.08.23"]
[EventType "swiss"]
[EventCountry "CZE"]
[SourceTitle "playchess.com"]
[Source "ChessBase"]
[SourceQuality "1"]
[TimeControl "40/5400+30:1800+30"]

1. d4 {[%emt 0:00:00]} Nf6 {[%emt 0:00:00]} 2. c4 {[%emt 0:00:00]} c5 {[%emt 0:00:06]} 3. d5 {[%emt 0:00:05]} b5 {[%emt 0:00:16]} 4. cxb5 {[%emt 0:00:09]} a6 {[%emt 0:00:17]} 5. bxa6 {[%emt 0:00:12]} Bxa6 {[%emt 0:00:18]} 6. Nc3 {[%emt 0:00:06]} d6 {[%emt 0:00:24]} 7. Nf3 {[%emt 0:00:13]} g6 {[%emt 0:00:23]} 8. e4 {[%emt 0:00:07]} Bxf1 {[%emt 0:00:23]} 9. Kxf1 {[%emt 0:00:11]} Nbd7 {[%emt 0:00:10]} 10. g3 {[%emt 0:03:04]} Bg7 {[%emt 0:00:35]} 11. Kg2 {[%emt 0:00:31]} O-O {[%emt 0:00:23]} 12. Qe2 {[%emt 0:00:29]} Qb6 {[%emt 0:06:19]} 13. a4 {[%emt 0:00:31]} Rfb8 {[%emt 0:00:57]} 14. Nb5 {[%emt 0:00:45]} Ne8 {[%emt 0:01:07]} 15. Bg5 {[%emt 0:00:19]} Kf8 {[%emt 0:07:38]} 16. Ra3 {[%emt 0:06:45]} Nc7 {[%emt 0:02:00]} 17. Nxc7 {[%emt 0:00:14]} Qxc7 {[%emt 0:00:36]} 18. b3 {[%emt 0:00:19]} Bc3 {[%emt 0:07:55]} 19. Bh6+ {[%emt 0:03:54]} Bg7 {[%emt 0:04:17]} 20. Qe3 {[%emt 0:11:48]} Rb4 {[%emt 0:12:12]} 21. h4 Nf6 {[%emt 0:01:50]} 22. Nd2 {[%emt 0:10:20]} Rd4 {[%emt 0:11:54]} 23. h5 {[%emt 0:04:06]} Qb7 {[%emt 0:06:32]} 24. hxg6 {[%emt 0:01:21]} fxg6 {[%emt 0:04:25]} 25. Rh4 {[%emt 0:04:15]} Qb4 {[%emt 0:03:35]} 26. Ra2 {[%emt 0:01:46]} Bxh6 {[%emt 0:03:35]} 27. Qxh6+ {[%emt 0:00:15]} Ke8 {[%emt 0:02:38]} 28. Qe3 {[%emt 0:03:50]} Rb8 {[%emt 0:02:23]} 29. a5 {[%emt 0:02:32]} Kd7 {[%emt 0:04:02]} 30. Nc4 {[%emt 0:05:42]} Kc7 {[%emt 0:09:40]} 31. e5 {[%emt 0:02:20]} Nxd5 {[%emt 0:00:36]} 32. exd6+ {[%emt 0:00:09]} exd6 {[%emt 0:00:10]} 33. Rxh7+ {[%emt 0:00:31]} Kc6 {[%emt 0:01:02]} 34. Qe6 {[%emt 0:00:27]} Nf6 {[%emt 0:03:40]} 35. Qxf6 {[%emt 0:01:08]} Qxb3 {[%emt 0:02:26]} 36. Rb2 {[%emt 0:00:42]} Qxc4 {[%emt 0:00:17]} 37. Rxb8 {[%emt 0:00:00]} Qd5+ {[%emt 0:00:11]} 38. Qf3 {[%emt 0:00:00]} Qxf3+ {[%emt 0:01:13]} 39. Kxf3 {[%emt 0:00:00]} Ra4 {[%emt 0:00:06]} 40. Rb6+ {[%emt 0:00:20]} Kd5 {[%emt 0:00:04]} 41. Rd7 {[%emt 0:30:19]} 1-0